bitfinex/quotes_BTCUSD_20250519
["timestamp","ask_amount","ask_price","bid_price","bid_amount"]
[1747676002348,0.37707878,105090.0,105080.0,0.00295]
[1747676004265,0.31467878,105090.0,105080.0,0.01246655]
[1747676004484,0.31467878,105090.0,105080.0,0.00295]
[1747676005310,0.30013793,105090.0,105080.0,0.00295]
[1747676005744,0.30013793,105090.0,105080.0,0.34295]
[1747676005939,0.12885563,105090.0,105080.0,0.56183001]
[1747676006144,0.32868434,105090.0,105080.0,0.552314]
[1747676006361,0.02203012,105090.0,105080.0,0.57134611]
[1747676006569,0.21234373,105090.0,105080.0,0.58054078]
[1747676006788,0.36453793,105090.0,105080.0,0.00889306]
[1747676007058,0.37907878,105090.0,105080.0,0.00889306]
[1747676007275,0.37907878,105090.0,105080.0,0.00295]
[1747676007675,0.34747878,105090.0,105080.0,0.00295]
[1747676007887,0.02855102,105070.0,105060.0,0.26438406]
[1747676008094,0.20938358,105070.0,105060.0,1.44540873]
[1747676008319,0.20938358,105070.0,105060.0,1.32176482]
[1747676008525,0.21890104,105070.0,105060.0,1.47396264]
[1747676008740,0.30669343,105070.0,105060.0,1.33704846]
[1747676008910,0.30669343,105070.0,105060.0,1.35608491]
[1747676009127,0.30669343,105070.0,105060.0,1.36008491]
[1747676009459,0.30769343,105070.0,105060.0,1.36508491]
[1747676009671,0.30769343,105070.0,105060.0,1.41313364]
[1747676009880,0.30769343,105070.0,105060.0,1.44623364]
[1747676010081,0.01051692,105070.0,105060.0,1.45575137]
[1747676010283,0.02003402,105070.0,105060.0,1.45575137]
[1747676010493,0.02003365,105070.0,105060.0,1.45575137]
[1747676010708,0.21990086,105070.0,105060.0,1.16241188]
[1747676010920,0.30769334,105070.0,105060.0,1.36229746]
[1747676011128,0.30769334,105070.0,105060.0,1.37181555]
[1747676011920,0.30769334,105070.0,105060.0,1.71301343]
[1747676012143,0.30769334,105070.0,105060.0,1.72253134]
[1747676012544,0.30769334,105070.0,105060.0,1.73204916]
[1747676012777,0.30769334,105070.0,105060.0,1.76384871]
[1747676012778,0.02955075,105070.0,105060.0,1.76384871]
[1747676012982,0.22941741,105070.0,105060.0,1.76384871]
[1747676013106,0.22941741,105070.0,105060.0,1.71625916]
[1747676013318,0.21990077,105070.0,105060.0,1.72577753]
[1747676013526,0.22941823,105070.0,105060.0,1.74481362]
[1747676013727,0.22941823,105070.0,105060.0,1.75433144]
[1747676014621,0.02003356,105070.0,105060.0,1.76384917]
[1747676014859,0.03906803,105070.0,105060.0,1.76384917]
[1747676015027,0.22941732,105070.0,105060.0,1.74481371]
[1747676015237,0.30769316,105070.0,105060.0,1.35141176]
[1747676015465,0.30769316,105070.0,105060.0,0.02167476]
[1747676015648,0.30769316,105070.0,105060.0,0.36167476]
[1747676015865,0.46060719,105070.0,105060.0,0.36167476]
[1747676016075,0.46060719,105070.0,105060.0,0.02167476]
[1747676016493,0.46060719,105070.0,105060.0,0.01767476]
[1747676016694,0.45960719,105070.0,105060.0,0.01267476]
[1747676016888,0.45960719,105070.0,105060.0,0.01467476]
[1747676017097,0.46060719,105070.0,105060.0,0.01094394]
[1747676017314,0.46060719,105070.0,105060.0,0.00794394]
[1747676017460,0.46060719,105070.0,105060.0,0.00894394]
[1747676017659,0.46260719,105070.0,105060.0,0.00894394]
[1747676017971,0.38523401,105070.0,105060.0,0.00894394]
[1747676018421,0.38523401,105070.0,105060.0,0.00694394]
[1747676019170,0.63542643,105060.0,105050.0,1.87379442]
[1747676019344,1.82228845,105060.0,105050.0,1.8654743]
[1747676019586,1.12361583,105060.0,105050.0,1.8654743]
[1747676019812,1.14629583,105060.0,105050.0,1.8654743]
[1747676021974,1.14829583,105060.0,105050.0,1.8654743]
[1747676022210,1.15129583,105060.0,105050.0,1.8654743]
[1747676024021,0.78861583,105060.0,105050.0,1.8654743]
[1747676024227,1.15133583,105060.0,105050.0,1.8654743]
[1747676026254,0.59777583,105060.0,105050.0,1.8654743]
[1747676026452,0.30219498,105060.0,105050.0,1.8654743]
[1747676026652,0.30219498,105060.0,105050.0,1.6354444]
[1747676028808,0.38003583,105060.0,105050.0,1.6354444]
[1747676030684,0.56927583,105060.0,105050.0,1.6354444]
[1747676031087,0.34923583,105060.0,105050.0,1.6354444]
[1747676032441,0.37943583,105060.0,105050.0,1.6354444]
[1747676036774,0.31673583,105060.0,105050.0,1.6354444]
[1747676036966,0.31673583,105060.0,105050.0,1.7016444]
[1747676037388,0.02403609,105060.0,105050.0,2.26058666]
[1747676037662,0.22392168,105060.0,105050.0,2.24154911]
[1747676037871,0.22392168,105060.0,105050.0,2.2510682]
[1747676038106,0.22392168,105060.0,105050.0,2.26736853]
[1747676038338,0.22392168,105060.0,105050.0,2.27688735]
[1747676038568,0.22192168,105060.0,105050.0,2.55457762]
[1747676038828,0.21992168,105060.0,105050.0,2.52155635]
[1747676039062,0.02003591,105060.0,105050.0,2.53107499]
[1747676039299,0.21992158,105060.0,105050.0,2.52155635]
[1747676039517,0.22092158,105060.0,105050.0,2.52255635]
[1747676039994,0.22092158,105060.0,105050.0,2.53197534]
[1747676040256,0.01151782,105060.0,105050.0,2.54149398]
[1747676040514,0.002,105060.0,105050.0,2.54149398]
[1747676040756,0.01151764,105060.0,105050.0,2.54149398]
[1747676040972,0.02103555,105060.0,105050.0,2.54149398]
[1747676041199,0.02103537,105060.0,105050.0,2.54149398]
[1747676041436,0.04007128,105060.0,105050.0,2.54149398]
[1747676041646,0.04958928,105060.0,105050.0,2.68421398]
[1747676041893,0.23043958,105060.0,105050.0,2.67469552]
[1747676042159,0.21140385,105060.0,105050.0,2.56745544]
[1747676042383,0.21140385,105060.0,105050.0,2.47807444]
[1747676042596,0.21140385,105060.0,105050.0,2.48759371]
[1747676042807,0.21140385,105060.0,105050.0,2.49711271]
[1747676043008,0.20188567,105060.0,105050.0,2.46851535]
[1747676043212,0.20188567,105060.0,105050.0,2.48755362]
[1747676043453,0.20188567,105060.0,105050.0,2.47803462]
[1747676043651,0.20188567,105060.0,105050.0,2.4970728]
[1747676043864,0.20188567,105060.0,105050.0,2.50659171]
[1747676044064,0.20188567,105060.0,105050.0,2.5620728]
[1747676044481,0.1923674,105060.0,105050.0,2.34312982]
[1747676044682,0.002,105060.0,105050.0,2.46851535]
[1747676044836,0.002,105060.0,105050.0,2.55275344]
[1747676044837,0.1923674,105060.0,105050.0,2.55275344]
[1747676045089,0.2209214,105060.0,105050.0,2.54323462]
[1747676045270,0.01151773,105060.0,105050.0,2.49707262]
[1747676045440,0.02103555,105060.0,105050.0,2.56227262]
[1747676045639,0.04007164,105060.0,105050.0,2.56227262]
[1747676045891,0.02103555,105060.0,105050.0,2.56227262]
[1747676046130,0.02103555,105060.0,105050.0,2.58130999]
[1747676046344,0.03055346,105060.0,105050.0,2.5997311]
[1747676047718,0.01151764,105060.0,105050.0,2.5997311]
[1747676048170,0.002,105060.0,105050.0,2.5997311]
[1747676049864,0.001,105060.0,105050.0,2.59141098]
[1747676050074,0.001,105060.0,105050.0,2.59241098]
[1747676050432,0.001,105060.0,105050.0,2.59141098]
[1747676050859,0.001,105060.0,105050.0,2.41365561]
[1747676051057,0.21040386,105060.0,105050.0,2.48161634]
[1747676051261,0.20940386,105060.0,105050.0,2.34745543]
[1747676051422,0.30671326,105060.0,105050.0,2.14755081]
[1747676051628,0.30771326,105060.0,105050.0,2.49213552]
[1747676051929,0.30771326,105060.0,105050.0,2.52069252]
[1747676052141,0.12686358,105060.0,105050.0,2.27627903]
[1747676052341,0.12686286,105060.0,105050.0,2.27627858]
[1747676052548,0.02003537,105060.0,105050.0,2.30937858]
[1747676052771,0.38653486,105060.0,105050.0,2.03829895]
[1747676052972,0.38415374,105060.0,105050.0,2.03829895]
[1747676053176,0.38415374,105060.0,105050.0,1.69829895]
[1747676053382,0.38415374,105060.0,105050.0,1.68819796]
[1747676053821,0.38415374,105060.0,105050.0,1.39329396]
[1747676054691,0.38415374,105060.0,105050.0,1.38651254]
[1747676057967,0.39365043,105060.0,105050.0,1.38351254]
[1747676058169,0.82695245,105060.0,105050.0,1.38351254]
[1747676058366,0.72964305,105060.0,105050.0,1.38251254]
[1747676058614,0.87132305,105060.0,105050.0,1.38251254]
[1747676058787,0.87232305,105060.0,105050.0,1.38351254]
[1747676059000,0.54633043,105060.0,105050.0,1.38251254]
[1747676059394,0.54833043,105060.0,105050.0,1.38351254]
[1747676059622,0.54833043,105060.0,105050.0,1.15111131]
[1747676060071,0.54933043,105060.0,105050.0,1.15111131]
[1747676060325,0.39665043,105060.0,105050.0,1.15111131]
[1747676060560,0.38110958,105060.0,105050.0,1.15111131]
[1747676060799,0.38510958,105060.0,105050.0,1.15111131]
[1747676060999,0.39965043,105060.0,105050.0,1.15111131]
[1747676061235,0.39665043,105060.0,105050.0,1.15011131]
[1747676061362,0.40165043,105060.0,105050.0,1.15011131]
[1747676063000,0.39215374,105060.0,105050.0,1.15011131]
[1747676065234,0.40161307,105060.0,105050.0,1.15011131]
[1747676065908,0.39215374,105060.0,105050.0,1.15011131]
[1747676068757,0.40148533,105060.0,105050.0,1.15011131]
[1747676070762,0.39215374,105060.0,105050.0,1.15011131]
[1747676071384,0.39215374,105060.0,105050.0,1.14073513]
[1747676071796,0.40192179,105060.0,105050.0,1.14073513]
[1747676071997,0.34002179,105060.0,105050.0,1.14073513]
[1747676072211,0.37072179,105060.0,105050.0,1.14073513]
[1747676072412,0.40092179,105060.0,105050.0,1.14073513]
[1747676078253,0.39115374,105060.0,105050.0,1.14073513]
[1747676078610,0.33025374,105060.0,105050.0,1.14073513]
[1747676080203,0.33025374,105060.0,105050.0,1.14760384]
[1747676080779,0.21840295,105060.0,105050.0,1.75180855]
[1747676080979,0.24695759,105060.0,105050.0,1.77084637]
[1747676081255,0.02803591,105060.0,105050.0,2.91889637]
[1747676081380,0.01851773,105060.0,105050.0,2.92841501]
[1747676081587,0.04307182,105060.0,105050.0,2.63415701]
[1747676082192,0.03355364,105060.0,105050.0,2.63415701]
[1747676082594,0.02855364,105060.0,105050.0,2.63415701]
[1747676082793,0.02103555,105060.0,105050.0,2.63415701]
[1747676083063,0.03355355,105060.0,105050.0,2.63515701]
[1747676083296,0.03055355,105060.0,105050.0,2.63415701]
[1747676083428,0.02103555,105060.0,105050.0,2.64370432]
[1747676083643,0.03155346,105060.0,105050.0,2.64370432]
[1747676084150,0.04107164,105060.0,105050.0,2.64370432]
[1747676084367,0.02203555,105060.0,105050.0,2.64370432]
[1747676084568,0.03155355,105060.0,105050.0,2.64370432]
[1747676084781,0.02203555,105060.0,105050.0,2.64370432]
[1747676084969,0.03155355,105060.0,105050.0,2.64370432]
[1747676085371,0.02203555,105060.0,105050.0,2.64370432]
[1747676085571,0.03155355,105060.0,105050.0,2.64370432]
[1747676087022,0.003,105060.0,105050.0,2.64370432]
[1747676087426,0.01251764,105060.0,105050.0,2.64370432]
[1747676087630,0.003,105060.0,105050.0,2.64370432]
[1747676087831,0.01251755,105060.0,105050.0,2.64370432]
[1747676088469,0.003,105060.0,105050.0,2.64370432]
[1747676088810,0.003,105060.0,105050.0,2.40342391]
[1747676089438,0.003,105060.0,105050.0,2.54610391]
[1747676090494,0.01251755,105060.0,105050.0,2.54610391]
[1747676090711,0.003,105060.0,105050.0,2.54610391]
[1747676091081,0.02203537,105060.0,105050.0,2.54610391]
[1747676092270,0.003,105060.0,105050.0,2.54610391]
[1747676093109,0.08888856,105090.0,105080.0,0.34]
[1747676093352,0.02103067,105090.0,105080.0,1.61860073]
[1747676093559,0.0210303,105090.0,105080.0,1.62811665]
[1747676093790,0.02103021,105090.0,105080.0,1.62811665]
[1747676093998,0.002,105090.0,105080.0,1.62811665]
[1747676094218,0.01151492,105090.0,105080.0,1.62811665]
[1747676094427,0.002,105090.0,105080.0,1.62811665]
[1747676094632,0.01351492,105090.0,105080.0,1.63598536]
[1747676094806,0.01351483,105090.0,105080.0,1.63598536]
[1747676095059,0.004,105090.0,105080.0,1.63598536]
[1747676095476,0.005,105090.0,105080.0,1.63598536]
[1747676095731,0.005,105090.0,105080.0,1.73329476]
[1747676095942,0.002,105090.0,105080.0,1.73229476]
[1747676096157,0.003,105090.0,105080.0,1.73229476]
[1747676096363,0.29619199,105110.0,105100.0,0.62043809]
[1747676096364,0.09639958,105110.0,105100.0,0.62043809]
[1747676096567,0.11542663,105110.0,105100.0,2.99058809]
[1747676096781,0.0190264,105110.0,105100.0,2.92096109]
[1747676096991,0.20938202,105120.0,105110.0,0.55881774]
[1747676097199,0.01902487,105120.0,105110.0,2.01842426]
[1747676097422,0.01902487,105120.0,105110.0,1.36431185]
[1747676097627,0.00955987,105120.0,105110.0,1.39521185]
[1747676097844,4.775e-05,105120.0,105110.0,1.39521185]
[1747676098932,0.037226,105130.0,105120.0,0.62109646]
[1747676099134,0.04721637,105130.0,105120.0,3.94954946]
[1747676099347,0.04721637,105130.0,105120.0,3.84280646]
[1747676099573,0.03770507,105130.0,105120.0,3.84280646]
[1747676099779,0.05672758,105130.0,105120.0,3.39599546]
[1747676099991,0.04721628,105130.0,105120.0,3.39599546]
[1747676100173,0.05021628,105130.0,105120.0,3.40286417]
[1747676100617,0.04070507,105130.0,105120.0,3.40286417]
[1747676100831,0.05021637,105130.0,105120.0,3.21280717]
[1747676101255,0.04070507,105130.0,105120.0,3.21280717]
[1747676101882,0.03770507,105130.0,105120.0,3.21280717]
[1747676102308,0.03870507,105130.0,105120.0,3.21280717]
[1747676102615,0.04821637,105130.0,105120.0,3.21280717]
[1747676102810,0.04821646,105130.0,105120.0,2.04784717]
[1747676102972,0.03870507,105130.0,105120.0,2.10160217]
[1747676103515,0.04821637,105130.0,105120.0,2.10160217]
[1747676104121,0.03870507,105130.0,105120.0,2.10160217]
[1747676104309,0.04821628,105130.0,105120.0,2.10160217]
[1747676105384,0.05772767,105130.0,105120.0,2.10160217]
[1747676105577,0.04992767,105130.0,105120.0,2.10160217]
[1747676106781,0.25919156,105130.0,105120.0,1.41860271]
[1747676106982,0.24016933,105130.0,105120.0,1.29337287]
[1747676107197,0.04992868,105130.0,105120.0,1.30288517]
[1747676107405,0.04992822,105130.0,105120.0,1.16028517]
[1747676107607,0.04992776,105130.0,105120.0,1.30288517]
[1747676107819,0.05943943,105130.0,105120.0,1.30288517]
[1747676108026,0.05943916,105130.0,105120.0,1.30288517]
[1747676108244,0.03090507,105130.0,105120.0,1.36678517]
[1747676109560,0.002,105150.0,105140.0,0.55875484]
[1747676109767,0.002,105150.0,105140.0,5.32560584]
[1747676110601,0.002,105170.0,105160.0,0.21871323]
[1747676110806,0.02115895,105170.0,105160.0,3.41745823]
[1747676111027,0.03066691,105170.0,105160.0,2.93836423]
[1747676111224,0.03066682,105170.0,105160.0,2.88235888]
[1747676111585,0.02115895,105170.0,105160.0,2.88235888]
[1747676111783,0.03066682,105170.0,105160.0,2.88235888]
[1747676111988,0.04017478,105170.0,105160.0,2.88922759]
[1747676112187,0.04017478,105170.0,105160.0,2.86555959]
[1747676112390,0.00614366,105170.0,105160.0,2.86555959]
[1747676113180,0.00214366,105170.0,105160.0,2.86555959]
[1747676113385,0.01165126,105170.0,105160.0,2.86555959]
[1747676113863,0.02115913,105170.0,105160.0,2.55918694]
[1747676114067,0.02115913,105170.0,105160.0,2.41682394]
[1747676114392,0.03066718,105170.0,105160.0,2.38205794]
[1747676114666,0.03066709,105170.0,105160.0,1.90411694]
[1747676114979,0.02115904,105170.0,105160.0,1.90411694]
[1747676115525,0.00214366,105170.0,105160.0,1.96651694]
[1747676116382,0.01165135,105170.0,105160.0,1.90411694]
[1747676116591,0.01165135,105170.0,105160.0,1.60096994]
[1747676116972,0.02115922,105170.0,105160.0,1.60096994]
[1747676117142,0.01165135,105170.0,105160.0,1.60096994]
[1747676117347,0.02115913,105170.0,105160.0,1.60096994]
[1747676117752,0.00214366,105170.0,105160.0,1.94096994]
[1747676118325,0.00214366,105170.0,105160.0,2.00426994]
[1747676118946,0.00214366,105170.0,105160.0,2.05186994]
[1747676119350,0.030518,105190.0,105180.0,0.55867164]
[1747676119548,0.04002442,105190.0,105180.0,2.66755564]
[1747676119755,0.04002442,105190.0,105180.0,2.67442435]
[1747676120011,0.04002442,105190.0,105180.0,1.68998335]
[1747676120213,0.23966316,105190.0,105180.0,0.68022548]
[1747676120416,0.26075737,105190.0,105180.0,0.56554053]
[1747676120624,0.26075737,105190.0,105180.0,0.57521896]
[1747676121237,0.26075737,105190.0,105180.0,0.70291196]
[1747676121508,0.27284516,105190.0,105180.0,0.55620486]
[1747676121730,0.26533874,105190.0,105180.0,0.55620486]
[1747676121944,0.36768239,105190.0,105180.0,0.34686871]
[1747676122381,0.36968239,105190.0,105180.0,0.34686871]
[1747676122612,0.36968239,105190.0,105180.0,0.00686871]
[1747676123470,0.69567501,105190.0,105180.0,0.00686871]
[1747676123710,0.36968239,105190.0,105180.0,0.00686871]
[1747676123896,0.27238448,105170.0,105160.0,0.00854731]
[1747676124150,0.36969388,105170.0,105160.0,0.00854731]
[1747676124802,0.38423473,105170.0,105160.0,0.00854731]
[1747676125436,0.36969388,105170.0,105160.0,0.55061997]
[1747676125635,0.36969388,105170.0,105160.0,0.53873369]
[1747676126017,0.24228448,105170.0,105160.0,0.55775204]
[1747676126217,0.24228448,105170.0,105160.0,0.56726099]
[1747676126218,0.20918448,105170.0,105160.0,0.56726099]
[1747676126428,0.03803202,105170.0,105160.0,1.15047667]
[1747676126635,0.25682188,105180.0,105170.0,0.55869271]
[1747676126845,0.36362253,105180.0,105170.0,0.54918484]
[1747676127059,0.36362253,105180.0,105170.0,0.5396767]
[1747676127261,0.35411539,105180.0,105170.0,0.5372767]
[1747676127705,0.34460797,105180.0,105170.0,0.34]
[1747676127907,0.34560797,105180.0,105170.0,0.34]
[1747676128102,0.37870797,105180.0,105170.0,0.34]
[1747676128349,0.37970797,105180.0,105170.0,0.34686871]
[1747676130028,0.37970797,105180.0,105170.0,0.00686871]
[1747676133473,0.37970797,105180.0,105170.0,0.34686871]
[1747676135143,0.37954486,105180.0,105170.0,0.34686871]
[1747676135776,0.37954486,105180.0,105170.0,0.537037]
[1747676135990,0.37954486,105180.0,105170.0,0.34686871]
[1747676141110,0.37954486,105180.0,105170.0,0.35541602]
[1747676142826,0.37954486,105180.0,105170.0,0.01541602]
[1747676144467,0.28772551,105170.0,105160.0,0.00686871]
[1747676144670,0.38503491,105170.0,105160.0,0.00686871]
[1747676145934,0.38503491,105170.0,105160.0,0.00786871]
[1747676148448,0.39432711,105170.0,105160.0,0.001]
[1747676150768,0.28846512,105150.0,105140.0,0.34902472]
[1747676150916,0.38577452,105150.0,105140.0,0.34916838]
[1747676152097,0.38577452,105150.0,105140.0,0.35216838]
[1747676153361,0.38577452,105150.0,105140.0,0.35416838]
[1747676154348,0.38577452,105150.0,105140.0,0.01216838]
[1747676156518,0.38577452,105150.0,105140.0,0.00514366]
[1747676156724,0.38577452,105150.0,105140.0,0.00314366]
[1747676156903,0.38577452,105150.0,105140.0,0.00014366]
[1747676157264,0.38677452,105150.0,105140.0,0.00014366]
[1747676157500,0.38777452,105150.0,105140.0,0.00014366]
[1747676161676,0.40222766,105150.0,105140.0,0.00014366]
[1747676161938,0.32307397,105150.0,105140.0,0.19036622]
[1747676162076,0.34209469,105150.0,105140.0,0.20938819]
[1747676162279,0.33258492,105150.0,105140.0,0.21889931]
[1747676163542,0.32307506,105150.0,105140.0,0.21640989]
[1747676163744,0.32307506,105150.0,105140.0,0.22592083]
[1747676164381,0.21122481,105150.0,105140.0,0.5754315]
[1747676164996,0.21122481,105150.0,105140.0,0.57543168]
[1747676165361,0.21122481,105150.0,105140.0,0.58494244]
[1747676167173,0.21122481,105150.0,105140.0,0.57543168]
[1747676167884,0.21122481,105150.0,105140.0,0.55640989]
[1747676168098,0.33675471,105150.0,105140.0,0.34716518]
[1747676168305,0.36895471,105150.0,105140.0,0.00716518]
[1747676174459,0.38328809,105150.0,105140.0,0.00716518]
[1747676174878,0.46066127,105150.0,105140.0,0.00716518]
[1747676175535,0.38328809,105150.0,105140.0,0.00014366]
[1747676175973,0.38128809,105150.0,105140.0,0.00014366]
[1747676176188,0.59892809,105150.0,105140.0,0.00014366]
[1747676176393,0.60492809,105150.0,105140.0,0.00114366]
[1747676176601,0.02853445,105130.0,105120.0,0.38405239]
[1747676176817,0.02853445,105130.0,105120.0,0.57428208]
[1747676177235,0.01902269,105130.0,105120.0,0.63728208]
[1747676177583,0.02853445,105130.0,105120.0,0.64437628]
[1747676177783,0.02853445,105130.0,105120.0,0.64537628]
[1747676178212,0.02853445,105130.0,105120.0,1.67727928]
[1747676178421,0.0380463,105130.0,105120.0,1.38523728]
[1747676178633,0.02853445,105130.0,105120.0,1.26423681]
[1747676178828,0.0380463,105130.0,105120.0,1.26523681]
[1747676179240,0.0380463,105130.0,105120.0,1.15217569]
[1747676179469,0.0380463,105130.0,105120.0,1.00300799]
[1747676180076,0.22828695,105130.0,105120.0,0.54883673]
[1747676180282,0.20926426,105130.0,105120.0,0.54883673]
[1747676180490,0.20926426,105130.0,105120.0,0.56786214]
[1747676180718,0.1997525,105130.0,105120.0,0.55834948]
[1747676180936,0.19024065,105130.0,105120.0,0.54886579]
[1747676181140,0.19024065,105130.0,105120.0,0.55837854]
[1747676181768,0.28755005,105130.0,105120.0,0.54886588]
[1747676181949,0.3647909,105130.0,105120.0,0.3490942]
[1747676182574,0.3647909,105130.0,105120.0,0.0090942]
[1747676184892,0.1997715,105120.0,105110.0,0.34]
[1747676185105,0.3286809,105120.0,105110.0,0.34]
[1747676185962,0.2970809,105120.0,105110.0,0.342]
[1747676186164,0.2980809,105120.0,105110.0,0.345]
[1747676189529,0.001,105120.0,105110.0,1.73559185]
[1747676189739,0.02002451,105120.0,105110.0,1.82643228]
[1747676189940,0.02953717,105120.0,105110.0,1.50432428]
[1747676190147,0.02953717,105120.0,105110.0,1.34222628]
[1747676190354,0.23882151,105120.0,105110.0,0.84230837]
[1747676190588,0.04856276,105120.0,105110.0,0.84230837]
[1747676190774,0.04856276,105120.0,105110.0,0.85182157]
[1747676191380,0.01051212,105120.0,105110.0,0.85182157]
[1747676191585,0.02953681,105120.0,105110.0,0.85182157]
[1747676191740,0.03904947,105120.0,105110.0,0.85182157]
[1747676192148,0.04856222,105120.0,105110.0,0.85182157]
[1747676192439,0.03904947,105120.0,105110.0,0.85182157]
[1747676192820,0.04856222,105120.0,105110.0,0.85182157]
[1747676193126,0.04843613,105120.0,105110.0,0.85182157]
[1747676195169,0.02941072,105120.0,105110.0,0.85182157]
[1747676195318,0.03892347,105120.0,105110.0,0.85182157]
[1747676196273,0.02941072,105120.0,105110.0,0.85182157]
[1747676196480,0.04843613,105120.0,105110.0,0.85182157]
[1747676197185,0.04843613,105120.0,105110.0,0.8589564]
[1747676197388,0.02941072,105120.0,105110.0,0.8589564]
[1747676197598,0.00087391,105120.0,105110.0,0.8589564]
[1747676198026,0.00951049,105140.0,105130.0,0.55877565]
[1747676198245,0.21875475,105140.0,105130.0,1.25798026]
[1747676198447,0.25075475,105140.0,105130.0,0.4826]
[1747676198650,0.37065366,105140.0,105130.0,0.34]
[1747676198855,0.1997525,105130.0,105120.0,0.0476]
[1747676199058,0.3611619,105130.0,105120.0,0.0476]
[1747676200289,0.3611619,105130.0,105120.0,0.05573665]
[1747676201544,0.3611619,105130.0,105120.0,0.00813665]
[1747676201961,0.37570275,105130.0,105120.0,0.00813665]
[1747676207612,0.37570275,105130.0,105120.0,0.001]
[1747676209705,0.32570275,105130.0,105120.0,0.001]
[1747676218017,0.32557266,105130.0,105120.0,0.001]
[1747676219399,0.33510614,105130.0,105120.0,0.001]
[1747676221619,0.32557266,105130.0,105120.0,0.001]
[1747676223432,0.32557266,105130.0,105120.0,0.00819078]
[1747676223568,0.24693181,105130.0,105120.0,0.00819078]
[1747676224414,0.27993181,105130.0,105120.0,0.00819078]
[1747676227209,0.24693181,105130.0,105120.0,0.00819078]
[1747676228500,0.27843181,105130.0,105120.0,0.00819078]
[1747676230725,0.24693181,105130.0,105120.0,0.00819078]
[1747676231480,0.27713181,105130.0,105120.0,0.00819078]
[1747676232507,0.24693181,105130.0,105120.0,0.00819078]
[1747676233297,0.27853181,105130.0,105120.0,0.00819078]
[1747676233911,0.24693181,105130.0,105120.0,0.00819078]
[1747676234922,0.12584495,105130.0,105120.0,0.62365324]
[1747676235125,0.30657384,105130.0,105120.0,0.37969078]
[1747676235302,0.30657384,105130.0,105120.0,0.57946246]
[1747676235482,0.30657384,105130.0,105120.0,0.63078787]
[1747676235683,0.19973359,105140.0,105120.0,1.85266104]
[1747676235881,0.10682016,105140.0,105130.0,1.05390874]
[1747676236139,0.32557518,105140.0,105130.0,1.07061091]
[1747676236285,0.32557581,105140.0,105130.0,1.06109952]
[1747676236484,0.22540298,105150.0,105140.0,0.1997335]
[1747676236711,0.01902134,105140.0,105130.0,0.62896579]
[1747676236910,0.02853228,105140.0,105130.0,1.77734258]
[1747676237320,0.03790522,105140.0,105130.0,1.77734258]
[1747676237878,0.04741598,105140.0,105130.0,1.78685397]
[1747676238029,0.23763917,105140.0,105130.0,1.51339604]
[1747676238232,0.04741661,105140.0,105130.0,1.6543391]
[1747676238438,0.04741661,105140.0,105130.0,1.67286985]
[1747676238638,0.23763917,105140.0,105130.0,1.67286985]
[1747676238837,0.23863917,105140.0,105130.0,1.67286985]
[1747676239248,0.23963917,105140.0,105130.0,1.67286985]
[1747676239441,0.23012841,105140.0,105130.0,1.5432124]
[1747676239603,0.23012841,105140.0,105130.0,1.55272398]
[1747676239818,0.01151058,105140.0,105130.0,1.57174685]
[1747676240017,0.02102089,105140.0,105130.0,1.57174685]
[1747676240313,0.23026524,105140.0,105130.0,1.57174685]
[1747676240507,0.23026596,105140.0,105130.0,1.5432124]
[1747676240791,0.22075538,105140.0,105130.0,1.55272398]
[1747676241411,0.22075538,105140.0,105130.0,1.5432124]
[1747676241971,0.03053282,105140.0,105130.0,1.55272379]
[1747676242226,0.22075538,105140.0,105130.0,1.55272379]
[1747676242780,0.2302665,105140.0,105130.0,1.55272379]
[1747676243386,0.2302665,105140.0,105130.0,1.5432124]
[1747676243630,0.002,105140.0,105130.0,1.55272379]
[1747676243839,0.02102107,105140.0,105130.0,1.55272379]
[1747676244392,0.002,105140.0,105130.0,1.28997147]
[1747676244573,0.002,105140.0,105130.0,1.48970734]
[1747676244794,0.002,105140.0,105130.0,1.48068798]
[1747676245329,0.001,105140.0,105130.0,1.48068798]
[1747676245546,0.01880061,105150.0,105130.0,1.48068798]
[1747676245730,0.01880061,105150.0,105140.0,1.62140013]
[1747676245938,0.02831047,105150.0,105140.0,1.59373362]
[1747676246350,0.02831038,105150.0,105140.0,1.59373362]
[1747676246940,0.03782033,105150.0,105140.0,1.59373362]
[1747676247145,0.03782033,105150.0,105140.0,1.53333462]
[1747676247391,0.01880061,105150.0,105140.0,1.30105362]
[1747676247596,0.02831038,105150.0,105140.0,1.30105362]
[1747676248172,0.03782033,105150.0,105140.0,1.30105362]
[1747676248607,0.03782033,105150.0,105140.0,1.30205362]
[1747676248839,0.02831038,105150.0,105140.0,1.30205362]
[1747676248995,0.03782024,105150.0,105140.0,1.30205362]
[1747676249400,0.00929102,105150.0,105140.0,1.30205362]
[1747676249602,0.00929102,105150.0,105140.0,2.16199337]
[1747676249975,0.002,105170.0,105160.0,0.55871323]
[1747676250171,0.002,105170.0,105160.0,2.56754523]
[1747676250384,0.002,105190.0,105180.0,0.21867164]
[1747676250625,0.002,105190.0,105180.0,1.09069164]
[1747676250626,0.00213665,105190.0,105180.0,1.09069164]
[1747676250801,0.01164253,105190.0,105180.0,1.09069164]
[1747676251002,0.00213665,105190.0,105180.0,1.09788242]
[1747676251188,0.00213665,105190.0,105180.0,1.15958242]
[1747676252021,0.00213665,105190.0,105180.0,1.59689182]
[1747676252269,0.00213665,105190.0,105180.0,1.59789182]
[1747676253083,0.00213665,105190.0,105180.0,1.61660115]
[1747676258191,0.01164253,105190.0,105180.0,1.31503175]
[1747676258393,0.01164253,105190.0,105180.0,1.45755175]
[1747676258799,0.01164244,105190.0,105180.0,1.45755175]
[1747676259203,0.00213665,105190.0,105180.0,1.45755175]
[1747676259404,0.01164244,105190.0,105180.0,1.45755175]
[1747676260114,0.02114832,105190.0,105180.0,1.45755175]
[1747676260301,0.03065438,105190.0,105180.0,1.45755175]
[1747676260602,0.02114832,105190.0,105180.0,1.45755175]
[1747676261358,0.25208778,105190.0,105180.0,1.11385483]
[1747676261598,0.28528778,105190.0,105180.0,1.25319406]
[1747676261957,0.28528778,105190.0,105180.0,1.26270111]
[1747676262159,0.28528778,105190.0,105180.0,1.25319406]
[1747676262364,0.28516269,105190.0,105180.0,1.27220807]
[1747676262573,0.45033921,105190.0,105180.0,0.01721014]
[1747676262783,0.46488006,105190.0,105180.0,0.01721014]
[1747676262984,0.46488006,105190.0,105180.0,0.00819078]
[1747676263795,0.46588006,105190.0,105180.0,0.00819078]
[1747676263995,0.46588006,105190.0,105180.0,0.00719078]
[1747676264346,0.46788006,105190.0,105180.0,0.00719078]
[1747676264593,0.26275754,105180.0,105170.0,0.00901936]
[1747676264767,0.36006694,105180.0,105170.0,0.00901936]
[1747676266002,0.36006694,105180.0,105170.0,0.01001936]
[1747676266226,0.36006694,105180.0,105170.0,0.001]
[1747676268695,0.36006694,105180.0,105170.0,0.00819078]
[1747676272841,0.36006694,105180.0,105170.0,0.34819078]
[1747676273861,0.35991283,105180.0,105170.0,0.34819078]
[1747676275405,0.36942006,105180.0,105170.0,0.34819078]
[1747676275614,1.13031007,105190.0,105180.0,0.20916477]